bitfinex/quotes_BTCUSD_20250410
["timestamp","ask_amount","ask_price","bid_price","bid_amount"]
[1744277824427,0.25582928,81942.0,81941.0,0.1602]
[1744277824827,0.26803228,81942.0,81941.0,0.1602]
[1744277825530,0.31533228,81942.0,81941.0,0.1602]
[1744277827959,0.31533228,81942.0,81934.0,1.25592]
[1744277827960,0.256299,81935.0,81934.0,1.25592]
[1744277828149,0.256299,81935.0,81934.0,1.41612]
[1744277828352,0.2680918,81935.0,81934.0,1.41612]
[1744277831831,0.3152918,81935.0,81934.0,1.25592]
[1744277832033,0.72005957,81935.0,81934.0,1.25592]
[1744277836452,0.24411,81930.0,81929.0,0.1572]
[1744277836656,0.256315,81930.0,81929.0,0.1572]
[1744277836880,0.29087002,81930.0,81929.0,0.1572]
[1744277837942,0.03455502,81930.0,81929.0,0.401313]
[1744277838148,0.03455502,81930.0,81929.0,0.1572]
[1744277838345,0.03455502,81930.0,81929.0,0.169405]
[1744277838555,0.03455502,81930.0,81929.0,0.401313]
[1744277838763,0.01175788,81930.0,81929.0,0.413518]
[1744277838962,0.244104,81933.0,81929.0,0.413518]
[1744277839204,0.01170206,81932.0,81931.0,0.244105]
[1744277839403,0.01170206,81932.0,81929.0,0.1572]
[1744277839605,0.244107,81932.0,81929.0,0.401313]
[1744277839799,0.01170523,81931.0,81929.0,0.401313]
[1744277840049,0.01170523,81931.0,81929.0,0.1572]
[1744277840465,0.25581423,81931.0,81929.0,0.1572]
[1744277840766,0.01170523,81931.0,81929.0,0.401312]
[1744277841120,0.244102,81933.0,81929.0,0.401312]
[1744277841348,0.01170341,81930.0,81929.0,0.1572]
[1744277841520,0.244105,81932.0,81929.0,0.401312]
[1744277841722,0.25634,81922.0,81921.0,0.00042393]
[1744277841952,0.244132,81923.0,81921.0,0.00042393]
[1744277842148,0.25582288,81922.0,81921.0,0.00042393]
[1744277842319,0.25582288,81922.0,81921.0,0.15762393]
[1744277842520,0.01168888,81922.0,81921.0,0.15762393]
[1744277842747,0.01168888,81922.0,81921.0,0.41396693]
[1744277842993,0.012205,81933.0,81923.0,0.012206]
[1744277843146,0.012203,81945.0,81934.0,0.256302]
[1744277843352,0.0476,81948.0,81947.0,0.24406]
[1744277843594,0.24406,81947.0,81943.0,0.244072]
[1744277843776,0.24406,81947.0,81934.0,0.12055382]
[1744277843777,0.012205,81928.0,81927.0,0.1572]
[1744277844117,0.012206,81925.0,81918.0,0.012207]
[1744277844321,0.244123,81926.0,81923.0,0.244128]
[1744277844467,0.24411,81930.0,81923.0,0.256337]
[1744277844667,0.244111,81930.0,81927.0,0.244119]
[1744277844893,0.244111,81930.0,81926.0,0.256328]
[1744277844894,0.25629,81939.0,81929.0,0.012205]
[1744277845054,0.256296,81937.0,81929.0,0.012205]
[1744277845236,0.244098,81935.0,81932.0,0.244103]
[1744277845456,0.244097,81935.0,81930.0,0.24411]
[1744277845663,0.244099,81934.0,81931.0,0.244105]
[1744277846741,0.244099,81934.0,81930.0,0.24411]
[1744277846742,0.244102,81933.0,81930.0,0.24411]
[1744277846942,0.012204,81935.0,81929.0,0.012205]
[1744277847325,0.244106,81932.0,81929.0,0.244113]
[1744277847526,0.244108,81931.0,81929.0,0.244113]
[1744277847700,0.244108,81931.0,81928.0,0.12055382]
[1744277847701,0.012205,81931.0,81928.0,0.12055382]
[1744277847915,0.012205,81931.0,81923.0,0.00042393]
[1744277847916,0.012205,81927.0,81923.0,0.00042393]
[1744277848150,0.256334,81924.0,81923.0,0.00042393]
[1744277849148,0.26807048,81924.0,81923.0,0.00042393]
[1744277851045,0.26807048,81924.0,81923.0,0.15762393]
[1744277851249,0.26807048,81924.0,81923.0,0.00042393]
[1744277851621,0.50905689,81924.0,81923.0,0.00042393]
[1744277851835,0.55745689,81924.0,81923.0,0.00042393]
[1744277852066,0.7770243,81924.0,81923.0,0.00042393]
[1744277852264,1.1770243,81924.0,81923.0,0.00042393]
[1744277853537,1.05647048,81924.0,81923.0,0.00042393]
[1744277853901,0.81234248,81924.0,81923.0,0.00042393]
[1744277854103,0.26807048,81924.0,81923.0,0.00042393]
[1744277854315,0.26807048,81924.0,81923.0,0.24455493]
[1744277854316,0.01173648,81924.0,81923.0,0.24455493]
[1744277854514,0.01173648,81924.0,81923.0,0.00042393]
[1744277854716,0.01173648,81924.0,81923.0,0.25676093]
[1744277854899,0.01173648,81924.0,81923.0,0.00042393]
[1744277855418,0.01173648,81924.0,81923.0,0.25676093]
[1744277855781,0.01173648,81924.0,81923.0,0.00042393]
[1744277856339,0.01173648,81924.0,81923.0,0.24455493]
[1744277856483,0.01173648,81924.0,81923.0,0.00042393]
[1744277856941,0.25586448,81924.0,81923.0,0.00042393]
[1744277857539,0.01173648,81924.0,81923.0,0.24455493]
[1744277857752,0.01173648,81924.0,81923.0,0.00042393]
[1744277858168,0.25586448,81924.0,81923.0,0.00042393]
[1744277858532,0.01173648,81924.0,81923.0,0.00042393]
[1744277858993,0.01173648,81924.0,81923.0,0.24455493]
[1744277859493,0.01173648,81924.0,81923.0,0.37731475]
[1744277859915,0.01173648,81924.0,81923.0,0.24455493]
[1744277860199,0.26807048,81924.0,81923.0,0.00042393]
[1744277860552,0.31577048,81924.0,81923.0,0.00042393]
[1744277860723,1.20469493,81924.0,81923.0,0.00042393]
[1744277860926,1.2275231,81924.0,81923.0,0.00042393]
[1744277861123,1.6275231,81924.0,81923.0,0.00042393]
[1744277861489,1.2275231,81924.0,81923.0,0.00042393]
[1744277861881,1.6275231,81924.0,81923.0,0.00042393]
[1744277864069,1.63965166,81924.0,81923.0,0.00042393]
[1744277869289,1.51909784,81924.0,81923.0,0.00042393]
[1744277872615,1.63965166,81924.0,81923.0,0.00042393]
[1744277876538,1.02499784,81924.0,81923.0,0.00042393]
[1744277877836,1.19315166,81924.0,81923.0,0.00042393]
[1744277879417,1.17032349,81924.0,81923.0,0.00042393]
[1744277880667,1.57032349,81924.0,81923.0,0.00042393]
[1744277882174,1.40216967,81924.0,81923.0,0.00042393]
[1744277882406,0.39370711,81924.0,81923.0,0.24455493]
[1744277882590,0.01173648,81924.0,81923.0,0.25676093]
[1744277882940,0.1,81925.0,81924.0,0.256334]
[1744277883145,0.1,81925.0,81924.0,0.410294]
[1744277883980,0.1,81925.0,81924.0,0.398088]
[1744277884424,0.1,81925.0,81924.0,0.15396]
[1744277884425,0.344125,81925.0,81924.0,0.15396]
[1744277884614,0.256334,81924.0,81923.0,0.00042393]
[1744277885828,0.244128,81924.0,81923.0,0.00042393]
[1744277885971,0.344125,81925.0,81923.0,0.00042393]
[1744277886171,0.344126,81925.0,81923.0,0.00042393]
[1744277886919,0.244128,81924.0,81923.0,0.00042393]
[1744277887485,0.256334,81924.0,81923.0,0.00042393]
[1744277894030,0.26793827,81924.0,81923.0,0.00042393]
[1744277902910,0.66793827,81924.0,81923.0,0.00042393]
[1744277904507,0.26793827,81924.0,81923.0,0.00042393]
[1744277907696,0.01160427,81924.0,81923.0,0.30366093]
[1744277907903,0.1,81925.0,81924.0,0.256334]
[1744277908219,0.1116036,81925.0,81924.0,0.256334]
[1744277909943,0.1116036,81925.0,81924.0,0.408574]
[1744277911551,0.1116036,81925.0,81924.0,0.396368]
[1744277913779,0.1116036,81925.0,81924.0,0.15224]
[1744277913994,0.3679346,81925.0,81924.0,0.15224]
[1744277914285,0.256334,81924.0,81923.0,0.00042393]
[1744277914622,0.26795477,81924.0,81923.0,0.00042393]
[1744277916410,0.01162077,81924.0,81923.0,0.00042393]
[1744277916634,0.01162077,81924.0,81923.0,0.25676093]
[1744277916814,0.01162077,81924.0,81923.0,0.37731475]
[1744277917015,0.01162077,81924.0,81923.0,0.4388556]
[1744277917309,0.012203,81947.0,81923.0,0.4388556]
[1744277917310,0.012204,81935.0,81927.0,0.256318]
[1744277917519,0.38197063,81953.0,81923.0,0.00042393]
[1744277917520,0.244128,81924.0,81923.0,0.00042393]
[1744277917817,0.244128,81924.0,81923.0,0.15266393]
[1744277917818,0.26798055,81924.0,81923.0,0.15266393]
[1744277920130,0.25577455,81924.0,81923.0,0.15266393]
[1744277920959,0.26798055,81924.0,81923.0,0.15266393]
[1744277921900,0.01164655,81924.0,81923.0,0.15266393]
[1744277922283,0.01164655,81924.0,81923.0,0.39679493]
[1744277922452,0.012205,81932.0,81926.0,0.244121]
[1744277922623,0.24411,81930.0,81927.0,0.244117]
[1744277922819,0.25580126,81929.0,81927.0,0.244117]
[1744277923022,0.25580126,81929.0,81926.0,0.244121]
[1744277923023,0.25580226,81929.0,81926.0,0.244121]
[1744277923244,0.25580226,81929.0,81927.0,0.244119]
[1744277923739,0.244128,81924.0,81923.0,0.00042393]
[1744277923939,0.26799958,81924.0,81923.0,0.00042393]
[1744277924677,0.60799958,81924.0,81923.0,0.00042393]
[1744277927224,1.11052403,81924.0,81923.0,0.00042393]
[1744277927412,1.15982403,81924.0,81923.0,0.00042393]
[1744277927616,1.20672403,81924.0,81923.0,0.00042393]
[1744277927763,1.20672403,81924.0,81923.0,9.3e-07]
[1744277927960,1.33215662,81924.0,81923.0,9.3e-07]
[1744277928170,1.73215662,81924.0,81923.0,9.3e-07]
[1744277928615,1.60672403,81924.0,81923.0,9.3e-07]
[1744277941748,1.61172403,81924.0,81923.0,9.3e-07]
[1744277942012,1.62626488,81924.0,81923.0,9.3e-07]
[1744277942286,1.62626488,81924.0,81897.0,0.0003372]
[1744277942287,0.256416,81898.0,81897.0,0.0003372]
[1744277942487,0.26725716,81898.0,81897.0,0.00076158]
[1744277942838,0.38781098,81898.0,81897.0,0.00076158]
[1744277943235,0.38781098,81898.0,81897.0,5.8e-07]
[1744277943236,1.18074111,81898.0,81897.0,5.8e-07]
[1744277943411,0.601438,81891.0,81890.0,7.8e-07]
[1744277943661,0.72199182,81891.0,81890.0,0.00042576]
[1744277943869,0.601444,81889.0,81888.0,9.6e-07]
[1744277943990,1.00703867,81889.0,81888.0,4.4e-07]
[1744277944184,1.40703867,81889.0,81888.0,4.4e-07]
[1744277944386,1.46768292,81889.0,81888.0,4.4e-07]
[1744277944587,1.58811551,81889.0,81888.0,4.4e-07]
[1744277945343,1.58811551,81889.0,81871.0,0.10865634]
[1744277945344,0.596497,81872.0,81871.0,0.10865634]
[1744277945543,1.09902101,81872.0,81871.0,0.10878371]
[1744277945738,1.10960936,81872.0,81871.0,0.10878371]
[1744277946124,1.50960936,81872.0,81871.0,0.10878371]
[1744277948440,1.38905554,81872.0,81871.0,0.00012737]
[1744277948623,0.64905554,81872.0,81871.0,0.00012737]
[1744277952032,0.26708535,81872.0,81871.0,0.00012737]
[1744277956661,0.26708535,81872.0,81871.0,0.25662737]
[1744277956662,0.01058835,81872.0,81871.0,0.25662737]
[1744277957707,0.01058835,81872.0,81871.0,0.24441337]
[1744277957867,0.01058835,81872.0,81871.0,0.00012737]
[1744277958065,0.25487135,81872.0,81871.0,0.00012737]
[1744277958268,0.01058835,81872.0,81871.0,0.00012737]
[1744277960188,0.01058835,81872.0,81871.0,0.24441337]
[1744277960394,0.01058835,81872.0,81871.0,0.00012737]
[1744277960598,0.26708535,81872.0,81871.0,0.00012737]
[1744277962211,0.01058835,81872.0,81871.0,0.01234137]
[1744277962408,0.01058835,81872.0,81871.0,0.25662737]
[1744277962674,0.244266,81878.0,81874.0,0.012213]
[1744277962820,0.256466,81882.0,81871.0,0.01234137]
[1744277962821,0.244283,81872.0,81871.0,0.00012737]
[1744277963275,0.26701554,81872.0,81871.0,0.00012737]
[1744277964575,0.01051854,81872.0,81871.0,0.24441337]
[1744277964768,0.244277,81874.0,81871.0,0.24441337]
[1744277964769,0.244281,81873.0,81871.0,0.00012737]
[1744277964974,0.25481995,81872.0,81871.0,0.00012737]
[1744277965370,0.01053695,81872.0,81871.0,0.00012737]
[1744277965579,0.25481995,81872.0,81871.0,0.00012737]
[1744277966396,0.26703395,81872.0,81871.0,0.00012737]
[1744277967359,0.37190525,81872.0,81871.0,0.00012737]
[1744277967490,0.49245907,81872.0,81871.0,0.00012737]
[1744277967690,0.38758777,81872.0,81871.0,0.00012737]
[1744277967930,0.78758777,81872.0,81871.0,0.00012737]
[1744277968657,0.78758777,81872.0,81871.0,3.7e-07]
[1744277968658,1.50955796,81872.0,81871.0,3.7e-07]
[1744277969092,1.55725796,81872.0,81871.0,3.7e-07]
[1744277969504,1.56865775,81872.0,81871.0,3.7e-07]
[1744277970118,0.596528,81862.0,81855.0,0.0003372]
[1744277970288,0.71708182,81862.0,81861.0,0.0041274]
[1744277970486,0.72751701,81862.0,81861.0,0.0041274]
[1744277971488,1.12751701,81862.0,81861.0,0.0041274]
[1744277973533,1.13891838,81862.0,81861.0,0.0041274]
[1744277975360,1.52088857,81862.0,81861.0,0.0041274]
[1744277975879,1.5094872,81862.0,81861.0,0.0041274]
[1744277977288,1.52088286,81862.0,81861.0,0.0041274]
[1744277982729,1.5094872,81862.0,81861.0,0.0041274]
[1744277983795,0.98893338,81862.0,81861.0,0.0041274]
[1744277984796,1.1094872,81862.0,81861.0,0.0041274]
[1744277985367,0.98893338,81862.0,81861.0,0.0041274]
[1744277987445,0.64893338,81862.0,81861.0,0.0041274]
[1744277987948,1.04893338,81862.0,81861.0,0.0041274]
[1744277988562,0.64893338,81862.0,81861.0,0.0041274]
[1744277990982,0.6603293,81862.0,81861.0,0.0041274]
[1744277992535,1.0603293,81862.0,81861.0,0.0041274]
[1744277992948,1.1694872,81862.0,81861.0,0.0041274]
[1744277994228,1.5094872,81862.0,81861.0,0.0041274]
[1744277994673,1.52089705,81862.0,81861.0,0.0041274]
[1744278001382,1.00034323,81862.0,81861.0,0.0041274]
[1744278003049,0.27837304,81862.0,81861.0,0.0041274]
[1744278008165,0.26696319,81862.0,81861.0,0.0041274]
[1744278008454,0.26696319,81862.0,81861.0,0.42721222]
[1744278008455,0.01043519,81862.0,81861.0,0.42721222]
[1744278008679,0.244293,81869.0,81865.0,0.244302]
[1744278008899,0.244293,81869.0,81863.0,0.012215]
[1744278008900,0.244277,81875.0,81871.0,0.244285]
[1744278009165,0.012213,81876.0,81871.0,0.289885]
[1744278009166,0.244272,81876.0,81871.0,0.289885]
[1744278009385,0.244277,81874.0,81871.0,0.0456]
[1744278009604,0.244281,81873.0,81871.0,0.0456]
[1744278009820,0.244278,81874.0,81871.0,0.0456]
[1744278010083,0.244266,81878.0,81874.0,0.244277]
[1744278010297,0.244268,81877.0,81874.0,0.012213]
[1744278010518,0.012212,81885.0,81879.0,0.012213]
[1744278010519,0.244246,81885.0,81879.0,0.012213]
[1744278010736,0.012212,81883.0,81877.0,0.256481]
[1744278010959,0.256479,81878.0,81874.0,0.244275]
[1744278011173,0.251494,81873.0,81867.0,0.244298]
[1744278011355,0.012214,81873.0,81864.0,0.244305]
[1744278011586,0.012214,81873.0,81862.0,0.256526]
[1744278011587,0.012214,81869.0,81865.0,0.14892]
[1744278011766,0.256516,81866.0,81865.0,0.14892]
[1744278011974,0.256516,81866.0,81859.0,0.0003372]
[1744278011975,0.256528,81862.0,81859.0,0.0003372]
[1744278012336,0.256522,81865.0,81861.0,0.2484424]
[1744278012537,0.012214,81869.0,81864.0,0.012215]
[1744278012736,0.012214,81869.0,81865.0,0.244303]
[1744278012737,0.244296,81868.0,81865.0,0.244303]
[1744278012954,0.256508,81869.0,81865.0,0.244303]
[1744278013993,0.25163458,81868.0,81865.0,0.244303]
[1744278014133,0.012214,81867.0,81862.0,0.0455]
[1744278014340,0.244313,81862.0,81861.0,0.0041274]
[1744278014705,0.0073301,81862.0,81861.0,0.0041274]
[1744278015034,0.256523,81864.0,81861.0,0.0041274]
[1744278015263,0.00733192,81863.0,81861.0,0.0041274]
[1744278015475,0.00733192,81863.0,81862.0,0.244313]
[1744278015875,0.244308,81864.0,81861.0,0.2484414]
[1744278016294,0.00733192,81863.0,81861.0,0.2484414]
[1744278016709,0.256521,81865.0,81861.0,0.2484414]
[1744278017029,0.244307,81864.0,81861.0,0.2484414]
[1744278017209,0.244313,81862.0,81861.0,0.0041274]
[1744278017505,0.0073301,81862.0,81861.0,0.0041274]
[1744278017871,0.2638581,81862.0,81861.0,0.0041274]
[1744278019820,0.38441192,81862.0,81861.0,0.0041274]
[1744278020146,0.72441192,81862.0,81861.0,0.0041274]
[1744278020887,0.7367314,81862.0,81861.0,0.0041274]
[1744278021109,1.1367314,81862.0,81861.0,0.0041274]
[1744278022253,1.11870159,81862.0,81861.0,0.0041274]
[1744278027899,0.98582829,81862.0,81861.0,0.0041274]
[1744278028112,0.99784976,81862.0,81861.0,0.0041274]
[1744278029442,1.11840358,81862.0,81861.0,0.0041274]
[1744278031411,1.19782937,81862.0,81861.0,0.0041274]
[1744278031617,1.12458937,81862.0,81861.0,0.0041274]
[1744278032359,1.17278937,81862.0,81861.0,0.0041274]
[1744278033636,1.17278937,81862.0,81861.0,4e-07]
[1744278039184,1.17278937,81862.0,81848.0,0.0003368]
[1744278039185,0.012217,81849.0,81848.0,0.0003368]
[1744278039409,0.256645,81825.0,81824.0,1.16306278]
[1744278039702,0.256645,81825.0,81820.0,0.14756]
[1744278039703,0.256657,81821.0,81820.0,0.14756]
[1744278039861,0.256657,81821.0,81820.0,0.1479867]
[1744278040025,0.27008318,81821.0,81820.0,0.1479867]
[1744278040583,0.27008318,81821.0,81820.0,0.0004267]
[1744278043992,0.390637,81821.0,81820.0,0.0004267]
[1744278045009,0.5054727,81821.0,81820.0,0.0004267]
[1744278045212,0.8454727,81821.0,81820.0,0.0004267]
[1744278046157,1.22454804,81821.0,81820.0,7e-07]
[1744278046298,1.37714804,81821.0,81820.0,7e-07]
[1744278046516,1.37714804,81821.0,81810.0,0.0003372]
[1744278046517,0.256688,81811.0,81810.0,9e-07]
[1744278046712,0.77858267,81811.0,81810.0,9e-07]
[1744278046936,1.15921041,81811.0,81810.0,9e-07]
[1744278048149,1.1705929,81811.0,81810.0,9e-07]
[1744278053368,1.15921041,81811.0,81810.0,9e-07]
[1744278053774,1.11241041,81811.0,81810.0,9e-07]
[1744278055784,0.65185659,81811.0,81810.0,9e-07]
[1744278056386,0.99185659,81811.0,81810.0,9e-07]
[1744278058063,0.2698864,81811.0,81810.0,9e-07]
[1744278066493,0.28126888,81811.0,81810.0,9e-07]
[1744278067277,0.02458088,81811.0,81810.0,9e-07]
[1744278067440,0.03680388,81811.0,81810.0,9e-07]
[1744278067636,0.28126888,81811.0,81810.0,9e-07]
[1744278070708,0.02458088,81811.0,81810.0,0.2444689]
[1744278070891,0.02458088,81811.0,81810.0,9e-07]
[1744278071092,0.26904588,81811.0,81810.0,9e-07]
[1744278071428,0.2576634,81811.0,81810.0,9e-07]
[1744278071633,0.2576634,81811.0,81810.0,0.2566919]
[1744278071634,0.0131984,81811.0,81810.0,0.2566919]
[1744278071839,0.0131984,81811.0,81810.0,0.3482919]
[1744278072016,0.1,81812.0,81811.0,0.256688]
[1744278072476,0.256688,81811.0,81810.0,0.0916009]
[1744278072693,0.2698112,81811.0,81810.0,9e-07]
[1744278073099,0.2698112,81811.0,81796.0,0.0459]
[1744278073100,0.256729,81798.0,81796.0,0.1476]
[1744278073300,0.2698546,81798.0,81796.0,0.1476]
[1744278077289,0.2698546,81798.0,81797.0,0.000337]
[1744278077981,0.29269115,81798.0,81797.0,0.000337]
[1744278078657,0.30410942,81798.0,81797.0,0.000337]
[1744278080345,0.42466324,81798.0,81797.0,0.000337]
[1744278081636,1.14663343,81798.0,81797.0,0.000337]
[1744278081853,1.19423343,81798.0,81797.0,0.000337]
[1744278082909,1.17139688,81798.0,81797.0,0.000337]
[1744278083278,1.17139688,81798.0,81789.0,0.0003372]
[1744278083279,0.012225,81793.0,81789.0,2e-07]
[1744278083479,0.695654,81790.0,81789.0,2e-07]
[1744278083683,0.82910979,81790.0,81789.0,2e-07]
[1744278084046,0.851953,81790.0,81789.0,2e-07]
[1744278084562,0.85237732,81790.0,81789.0,2e-07]
[1744278084839,0.85237732,81790.0,81777.0,6e-07]
[1744278084840,0.642092,81778.0,81777.0,6e-07]
[1744278085017,0.76264582,81778.0,81777.0,6e-07]
[1744278085217,1.15745485,81778.0,81777.0,6e-07]
[1744278085640,1.16667739,81778.0,81777.0,6e-07]
[1744278085862,1.13279566,81778.0,81777.0,6e-07]
[1744278086069,1.12357312,81778.0,81777.0,6e-07]
[1744278087454,0.78357312,81778.0,81777.0,6e-07]
[1744278088917,0.02425711,81778.0,81777.0,6e-07]
[1744278089280,0.26882111,81778.0,81777.0,6e-07]
[1744278089482,0.02425711,81778.0,81777.0,6e-07]
[1744278089790,0.244561,81781.0,81778.0,0.244562]
[1744278089990,0.244539,81787.0,81778.0,0.244562]
[1744278089991,0.24495432,81790.0,81785.0,0.244542]
[1744278090198,0.244545,81785.0,81782.0,0.244552]
[1744278090599,0.244547,81784.0,81782.0,0.244552]
[1744278090818,0.244547,81784.0,81780.0,0.256782]
[1744278091021,0.24455,81783.0,81780.0,0.256782]
[1744278091216,0.244553,81782.0,81779.0,0.244559]
[1744278091423,0.244556,81781.0,81778.0,0.244564]
[1744278092018,0.244556,81781.0,81777.0,0.37734842]
[1744278092625,0.244559,81780.0,81777.0,0.36512042]
[1744278092851,0.256779,81782.0,81777.0,0.36512042]
[1744278093027,0.256779,81782.0,81778.0,0.244562]
[1744278093246,0.256779,81782.0,81779.0,0.24456]
[1744278095359,0.25679,81779.0,81777.0,6e-07]
[1744278095562,0.256776,81783.0,81777.0,0.1464406]
[1744278095784,0.244555,81782.0,81777.0,0.1464406]
[1744278095987,0.244561,81780.0,81777.0,0.1464406]
[1744278096208,0.24456,81780.0,81777.0,0.3910056]
[1744278096518,0.244562,81779.0,81777.0,0.1464406]
[1744278096711,0.24456,81780.0,81777.0,0.1464406]
[1744278097450,0.24456,81780.0,81777.0,0.3910066]
[1744278097626,0.012227,81780.0,81777.0,0.1464406]
[1744278097836,0.256792,81778.0,81777.0,0.1464406]
[1744278099439,0.256792,81778.0,81777.0,6e-07]
[1744278104094,0.2696791,81778.0,81777.0,6e-07]
[1744278108861,0.0128871,81778.0,81777.0,0.2567956]
[1744278109207,0.39419619,81787.0,81782.0,0.244551]
[1744278109409,0.012227,81785.0,81779.0,0.256788]
[1744278109610,0.244552,81782.0,81779.0,0.256788]
[1744278109811,0.244552,81782.0,81778.0,0.244563]
[1744278110063,0.01290634,81781.0,81779.0,0.24456]
[1744278110442,0.24455,81783.0,81780.0,0.244557]
[1744278110644,0.01291624,81782.0,81780.0,0.244557]
[1744278110874,0.01291624,81782.0,81778.0,0.012228]
[1744278111076,0.01291624,81782.0,81779.0,0.244561]
[1744278111637,0.01291624,81782.0,81780.0,0.244558]
[1744278112797,0.25746924,81782.0,81779.0,0.244561]
[1744278113028,0.25746924,81782.0,81778.0,0.256792]
[1744278113029,0.01291624,81782.0,81778.0,0.256792]
[1744278113384,0.012227,81783.0,81777.0,6e-07]
[1744278113563,0.2574695,81781.0,81778.0,0.244562]
[1744278113762,0.244555,81781.0,81777.0,0.0122286]
[1744278113982,0.25747175,81780.0,81777.0,0.2567946]
[1744278114302,0.244562,81779.0,81777.0,6e-07]
[1744278114511,0.01290926,81778.0,81777.0,0.2445666]
[1744278114805,0.244559,81780.0,81777.0,0.2445666]
[1744278115003,0.01290926,81778.0,81777.0,6e-07]
[1744278115216,0.012227,81781.0,81777.0,6e-07]
[1744278115391,0.01290926,81778.0,81777.0,6e-07]
[1744278115595,0.244562,81779.0,81777.0,6e-07]
[1744278115795,0.01290926,81778.0,81777.0,6e-07]
[1744278116000,0.25747326,81778.0,81777.0,6e-07]
[1744278116195,0.26970126,81778.0,81777.0,6e-07]
[1744278117218,0.01290926,81778.0,81777.0,6e-07]
[1744278117386,0.01290926,81778.0,81777.0,0.2567956]
[1744278117604,0.244561,81779.0,81777.0,6e-07]
[1744278117803,0.25747757,81778.0,81777.0,6e-07]
[1744278118007,0.01291357,81778.0,81777.0,0.2567956]
[1744278118447,0.244553,81782.0,81779.0,0.24456]
[1744278119002,0.25747581,81781.0,81778.0,0.244564]
[1744278119276,0.01291881,81781.0,81778.0,0.244564]
[1744278119653,0.244555,81782.0,81778.0,0.244564]
[1744278119772,0.01291707,81780.0,81778.0,0.244564]
[1744278120141,0.01291532,81779.0,81778.0,0.256792]
[1744278120507,0.244556,81781.0,81778.0,0.256792]
[1744278120709,0.01291707,81780.0,81778.0,0.256792]
[1744278120913,0.244556,81781.0,81777.0,0.2567956]
[1744278121234,0.01291707,81780.0,81778.0,0.244563]
[1744278122142,0.01291707,81780.0,81779.0,0.244561]
[1744278122337,0.244555,81782.0,81778.0,0.256791]
[1744278122506,0.244561,81779.0,81777.0,6e-07]
[1744278122706,0.01291357,81778.0,81777.0,0.2445666]
[1744278122903,0.256792,81778.0,81777.0,6e-07]
[1744278123110,0.26970557,81778.0,81777.0,6e-07]
[1744278125652,0.01291357,81778.0,81777.0,0.3041956]
[1744278125861,0.012224,81800.0,81777.0,0.32518242]
[1744278126060,0.012224,81800.0,81789.0,0.256757]
[1744278126317,0.24451,81797.0,81789.0,0.403517]
[1744278126457,0.256735,81797.0,81789.0,0.403517]
[1744278126663,0.01143962,81796.0,81789.0,0.403517]
[1744278127023,0.01143962,81796.0,81789.0,0.52407082]
[1744278127224,0.244495,81801.0,81789.0,0.52407082]
[1744278127385,0.256719,81801.0,81789.0,0.52407082]
[1744278127579,0.62647319,81799.0,81789.0,0.52407082]
[1744278127805,0.244505,81798.0,81789.0,0.52407082]
[1744278128401,0.38197019,81799.0,81789.0,0.52407082]
[1744278128928,0.244505,81798.0,81789.0,0.52407082]
[1744278129125,0.38197019,81799.0,81789.0,0.52407082]
[1744278129917,0.62647219,81799.0,81789.0,0.52407082]
[1744278130120,0.63869719,81799.0,81789.0,0.52407082]
[1744278130292,0.38197019,81799.0,81789.0,0.52407082]
[1744278130695,0.244477,81808.0,81789.0,0.52407082]
[1744278130696,0.244481,81806.0,81789.0,0.52407082]
[1744278130877,0.012224,81803.0,81789.0,0.52407082]
[1744278131083,0.0123918,81811.0,81789.0,0.42391082]
[1744278131283,0.012223,81808.0,81789.0,0.57067082]
[1744278131506,0.012224,81803.0,81789.0,0.57067082]
[1744278131706,0.012224,81800.0,81789.0,0.52407082]
[1744278131956,0.012224,81800.0,81789.0,0.403517]
[1744278131957,0.244517,81794.0,81789.0,0.403517]
[1744278132242,0.256737,81796.0,81789.0,0.256757]
[1744278132441,0.01449513,81790.0,81789.0,0.403517]
[1744278132599,0.00042432,81790.0,81789.0,0.403517]
[1744278132800,0.00042432,81790.0,81789.0,0.52407082]
[1744278133608,0.00042432,81790.0,81789.0,0.53861167]
[1744278136365,0.00042432,81790.0,81789.0,0.52407082]
[1744278136667,0.00042432,81790.0,81789.0,0.52999082]
[1744278140326,0.00042432,81790.0,81783.0,0.256775]
[1744278140327,0.01265032,81790.0,81782.0,0.00913252]
[1744278140538,0.244564,81778.0,81777.0,6e-07]
[1744278140755,0.27090816,81778.0,81777.0,6e-07]
[1744278141583,0.31980816,81778.0,81777.0,6e-07]
[1744278148445,1.17373517,81778.0,81777.0,6e-07]
[1744278149000,1.17373517,81778.0,81764.0,0.0003374]
[1744278149001,0.596811,81772.0,81764.0,0.0003374]
[1744278149204,1.20169476,81772.0,81771.0,1e-06]
[1744278149421,1.21550117,81772.0,81771.0,1e-06]
[1744278149862,1.2245627,81772.0,81771.0,1e-06]
[1744278150089,1.2359657,81772.0,81771.0,1e-06]
[1744278154094,1.22142485,81772.0,81771.0,1e-06]
[1744278154300,1.21236332,81772.0,81771.0,1e-06]
[1744278155216,0.9861065,81772.0,81771.0,1e-06]
[1744278155416,0.6461065,81772.0,81771.0,1e-06]
[1744278161421,0.76666032,81772.0,81771.0,1e-06]
[1744278161833,1.15596032,81772.0,81771.0,1e-06]
[1744278162433,1.17160511,81772.0,81771.0,1e-06]
[1744278162639,1.15596032,81772.0,81771.0,1e-06]
[1744278165714,0.9861065,81772.0,81771.0,1e-06]
[1744278168437,0.6461065,81772.0,81771.0,1e-06]
[1744278174780,0.25838841,81772.0,81771.0,1e-06]
[1744278175022,0.27061741,81772.0,81771.0,1e-06]
[1744278175236,0.01380641,81772.0,81771.0,1e-06]
[1744278175513,0.01380641,81772.0,81771.0,0.25926058]
[1744278175641,0.012226,81789.0,81780.0,0.012227]
[1744278175800,0.244541,81786.0,81780.0,0.396077]
[1744278176003,0.244544,81785.0,81780.0,0.396077]
[1744278176209,0.244544,81785.0,81782.0,0.244551]
[1744278176410,0.01461739,81784.0,81783.0,0.244548]
[1744278176608,0.01461739,81784.0,81781.0,0.256782]
[1744278176810,0.244545,81785.0,81782.0,0.244551]
[1744278177004,0.01461564,81783.0,81782.0,0.244551]
[1744278177230,0.25677,81785.0,81780.0,0.15152]
[1744278177432,0.256782,81781.0,81780.0,0.15152]
[1744278177858,0.27140113,81781.0,81780.0,0.15152]
[1744278179729,0.244582,81772.0,81771.0,1e-06]
[1744278179860,0.256811,81772.0,81771.0,1e-06]
[1744278180063,0.27143189,81772.0,81771.0,1e-06]
[1744278181878,0.39198571,81772.0,81771.0,1e-06]